Cogmind - Beta 11 @@@ ROGUE MODE // 2022.04.07 @ 14:05:30 Player: Virvatuli Result: Self-destructed Performance ------------- Evolutions (1) 500 Regions Visited (2) 400 Robots Destroyed (24) 120 Value Destroyed (417) 417 Prototype IDs (0) 0 Alien Tech Used (0) 0 Bonus (10) 10 TOTAL SCORE: 1447 Bonus ------- High Alert Combat Kills 10 Cogmind --------- Core Integrity 287/400 Matter 134/300 Energy 100/100 System Corruption 0% Temperature Cool (8) Movement Core (50) Location -9/Materials Parts ------- > --- POWER (1) -------- (None) > --- PROPULSION (2) --- (None) > --- UTILITY (4) ------ ECM Suite Hacking Suite > --- WEAPON (2) ------- (None) > --- INVENTORY (5) ---- (None) Peak State ------------ > --- POWER ------------ Light Ion Engine > --- PROPULSION ------- Aluminum Leg Aluminum Leg > --- UTILITY ---------- Hacking Suite High-powered Tractor Beam > --- WEAPON ----------- Grenade Launcher Datajack > --- INVENTORY -------- (None) [Rating: 10] Favorites ----------- Power Ion Engine Engine Ion Engine Propulsion Aluminum Leg Leg Aluminum Leg Flight Unit Flight Unit Utility Hacking Suite Device ECM Suite Storage Small Storage Unit Hackware Hacking Suite Weapon EM Pulse Gun Energy Gun EM Pulse Gun Ballistic Gun Light Assault Rifle Launcher Grenade Launcher Special Melee Weapon Datajack Build | -11 -10 -9 ------- Run | Scr Mat Mat Slots Evolved 2 | . . 2 Power . | . . . Propulsion . | . . . Utility 2 | . . 2 Weapon . | . . . Parts Attached 23 | 6 17 . Power 4 | 2 2 . Engine 4 | 2 2 . Core . | . . . Reactor . | . . . Propulsion 7 | 2 5 . Treads . | . . . Leg 5 | 2 3 . Wheel . | . . . Hover . | . . . Flight 2 | . 2 . Utility 5 | 1 4 . Device 2 | . 2 . Storage 2 | 1 1 . Processor . | . . . Hackware 1 | . 1 . Protection . | . . . Artifact . | . . . Weapon 7 | 1 6 . Energy Gun 2 | 1 1 . Energy Cannon . | . . . Ballistic Gun 1 | . 1 . Ballistic Cannon . | . . . Launcher 2 | . 2 . Special Weapon . | . . . Impact Weapon . | . . . Slashing Weapon . | . . . Piercing Weapon . | . . . Special Melee Weapon 2 | . 2 . Unidentified Prototypes . | . . . Parts Lost 9 | . 5 4 Power 3 | . 2 1 Propulsion 4 | . 2 2 Utility . | . . . Weapon 2 | . 1 1 Highest Loss Streak 3 | . 3 3 To Critical Strikes 1 | . . 1 Average Slot Usage (%) 81 | . 88 62 Engine 12 | . 13 11 Leg 21 | . 22 21 Flight 3 | . 5 . Device 10 | . 9 11 Storage 7 | . 9 . Hackware 7 | . 6 11 Energy Gun 5 | . 6 . Launcher 6 | . 8 . Special Melee Weapon 5 | . 5 8 Naked Turns . | . . . Heaviest Build 18 | 12 18 8 Greatest Support 20 | 20 20 20 Greatest Overweight (x) 2 | . 1 2 Average Overweight (x) . | . . . Largest Inventory Capacity 8 | 8 8 5 Average Capacity 5 | 6 5 5 Most Carried 7 | 7 7 . Average Carried 1 | 2 1 . Final Capacity 8 | 8 5 5 Final Carried 7 | 7 . . Class Distribution -------------------- 53% | Mutant 46% | Scavenger-Mutant Dominant Class ---------------- Mutant | -10/Materials Scavenger-Mutant | -9/Materials Resources | -11 -10 -9 ----------- Run | Scr Mat Mat Matter Collected 408 | 188 220 . Remotely 99 | . 99 . Salvage Created 352 | . 352 . Parts 47 | . 47 . Haulers Intercepted 1 | . 1 . Recyclers Shooed . | . . . Parts Field Recycled . | . . . Retrieved Matter . | . . . Parts Self-Destructed . | . . . Prevented . | . . . Kills | -11 -10 -9 ------- Run | Scr Mat Mat Combat Hostiles Destroyed 16 | . 16 . Guns 2 | . 2 . AOE 14 | . 14 . Classes Destroyed 8 | . 8 . Worker 2 | . 2 . Builder 2 | . 2 . Hauler 1 | . 1 . Mechanic 1 | . 1 . Operator 1 | . 1 . Watcher 1 | . 1 . Swarmer 9 | . 9 . Grunt 7 | . 7 . Best Kill Streak 9 | . 9 . Combat Bots Only 6 | . 6 . Max Kills in Single Turn 3 | . 3 . Gunslinging . | . . . Exploded 3 | . 3 . Melee . | . . . Uniques/NPCs Destroyed . | . . . Combat | -11 -10 -9 -------- Run | Scr Mat Mat Damage Taken 856 | . 596 260 Core 290 | . 177 113 Absorbed by Shields . | . . . Regen/Repaired (Parts) 7 | . 7 . Core Remaining (%) 64 | 100 29 . Volleys Fired 33 | 12 21 . Largest 2 | 1 2 . Hottest 70 | 40 70 . Shots Fired 46 | 12 34 . Gun 27 | 12 15 . Cannon . | . . . Launcher 19 | . 19 . Special . | . . . Kinetic . | . . . Thermal . | . . . Explosive 19 | . 19 . Electromagnetic 27 | 12 15 . Robot Hit Streak 9 | 3 9 . Robot Miss Streak 4 | 4 3 . Penetration Max . | . . . Secondary Targets . | . . . Shots Hit Robots 28 | 6 20 2 Core Hits 36 | 1 35 . Critical Kills . | . . . Critical Parts Destroyed . | . . . Critical Strikes . | . . . Melee Attacks 5 | . 3 2 Impact . | . . . Slashing . | . . . Piercing . | . . . Sneak Attacks 3 | . 1 2 Combat Hostiles . | . . . Follow-up Attacks . | . . . Damage Inflicted 1360 | 119 1227 14 Guns 211 | 76 135 . Cannons . | . . . Explosions 1135 | 43 1092 . Melee . | . . . Ramming 14 | . . 14 Kinetic . | . . . Thermal 99 | 43 56 . Explosive 1036 | . 1036 . Electromagnetic 211 | 76 135 . Impact . | . . . Slashing . | . . . Piercing . | . . . Highest Corruption 1 | . 1 . Average Corruption 1 | . 1 . Corruption Purged . | . . . Corruption Blocked . | . . . Effects 4 | . 4 . Message Errors 1 | . 1 . Matter Fused 1 | . 1 . Energy Discharges 1 | . 1 . Data Loss (major) 1 | . 1 . Overload Shots . | . . . Overflow Damage 17 | . 17 . Projectiles . | . . . Explosions 17 | . 17 . Melee . | . . . Knockbacks . | . . . Impact . | . . . Kinetic . | . . . Secondary . | . . . Self-Inflicted Damage 116 | . 109 7 Shots 4 | . 4 . Rammed 1 | . . 1 Targets Rammed 1 | . . 1 Kicked . | . . . Crushed . | . . . Highest Temperature 70 | . 70 8 Average Temperature 27 | . 28 6 Received Heat Transfer 321 | . 180 141 Siege Activations . | . . . Robots Corrupted . | . . . Combat Hostiles . | . . . Parts Fried . | . . . Impact Corruptions . | . . . Robots Melted . | . . . Combat Hostiles . | . . . Parts Melted . | . . . Heat Transferred 200 | 50 150 . Parts Sabotaged . | . . . Parts Stolen . | . . . Parts Stripped . | . . . Power Chain Reactions 3 | 1 2 . Missiles Intercepted . | . . . Alert | -11 -10 -9 ------- Run | Scr Mat Mat Peak Influence 444 | . 444 204 Initial 92 | . . 92 Average 153 | . 198 131 Maximum Alert Level 2 | . 2 1 Low Security (%) 58 | 100 33 99 Level 1 35 | . 55 . Level 2 6 | . 10 . Level 3 . | . . . Level 4 . | . . . Level 5 . | . . . High Security . | . . . Max Security . | . . . Squads Dispatched 4 | . 3 1 Investigation 1 | . 1 . Extermination . | . . . Reinforcement 3 | . 2 1 Assault . | . . . Garrison . | . . . Intercept . | . . . Searches Triggered . | . . . Construction Impeded . | . . . Haulers Reinforced . | . . . Active Scanning Responses . | . . . Cargo Convoy Interrupts . | . . . Stealth | -11 -10 -9 --------- Run | Scr Mat Mat Distress Signals 2 | . 1 1 Communications Jammed . | . . . Distress Signals . | . . . Times Spotted 41 | . 25 16 Peak Tracking Total 9 | . 6 9 Tactical Retreats 3 | . 1 2 Traps | -11 -10 -9 ------- Run | Scr Mat Mat Traps Triggered . | . . . Indirectly . | . . . Trap Hack Attempts 4 | . 4 . Triggered . | . . . Disarmed 2 | . 2 . Reprogrammed . | . . . Reused . | . . . Traps Extracted . | . . . Installed . | . . . Triggered . | . . . Machines | -11 -10 -9 ---------- Run | Scr Mat Mat Machines Disabled 4 | . 4 . Max in Single Turn 1 | . 1 . Machines Sabotaged . | . . . Garrisons Compromised . | . . . Overloaded Fab Kills . | . . . Hacking | -11 -10 -9 --------- Run | Scr Mat Mat Machines Accessed 12 | . 8 4 Terminals 9 | . 6 3 Fabricators . | . . . Repair Stations 1 | . 1 . Recycling Units 1 | . 1 . Scanalyzers 1 | . . 1 Garrison Access . | . . . Total Hacks 39 | . 26 13 Successful 21 | . 16 5 Failed 18 | . 10 8 Catastrophic 3 | . . 3 Database Lockouts . | . . . Manual 19 | . 8 11 Terminals 29 | . 17 12 Fabricators . | . . . Repair Stations 3 | . 3 . Recycling Units 6 | . 6 . Scanalyzers 1 | . . 1 Garrison Access . | . . . Terminal Hacks 13 | . 8 5 Alert Level 3 | . 1 2 Unreport Threat 2 | . 2 . Locate Traps 1 | . 1 . Dispatch Records 1 | . 1 . Patrol Status 1 | . . 1 Coupling Status 1 | . 1 . Zone Layout 4 | . 2 2 Fabricator Hacks . | . . . Repair Station Hacks 2 | . 2 . Scan Component 1 | . 1 . Repair 1 | . 1 . Recycling Unit Hacks 6 | . 6 . Recycle Component 2 | . 2 . Process 1 | . 1 . Report Inventory 2 | . 2 . Retrieve Matter 1 | . 1 . Scanalyzer . | . . . Garrison Access Hacks . | . . . Unauthorized Hacks . | . . . Terminals . | . . . Fabricators . | . . . Repair Stations . | . . . Recycling Units . | . . . Scanalyzers . | . . . Garrison Access . | . . . Data Cores Recovered 1 | . 1 . Used . | . . . Hacking Detections 10 | . 7 3 Full Trace Events 4 | . 3 1 Feedback Events 1 | . 1 . Corruption 1 | . 1 . Feedback Blocked . | . . . Robot Schematics Acquired . | . . . Robots Built . | . . . Authchips . | . . . Time . | . . . Total Robot Build Rating . | . . . Part Schematics Acquired . | . . . Parts Built . | . . . Authchips . | . . . Time . | . . . Total Part Build Rating . | . . . Parts Repaired 1 | . 1 . Time 26 | . 26 . Parts Recycled 2 | . 2 . Recycled Matter 3 | . 3 . Retrieved Matter 3 | . 3 . Retrieved Components . | . . . Parts Scanalyzed . | . . . Part Schematics Acquired . | . . . Parts Damaged . | . . . Bothacking | -11 -10 -9 ------------ Run | Scr Mat Mat Used RIF Installer . | . . . Robots Hacked 3 | . 3 . Non-combat 3 | . 3 . Combat . | . . . Robot Hacks Applied 3 | . 3 . parse_system 1 | . 1 . find_station 1 | . 1 . check_alert 1 | . 1 . Relay Couplers Released . | . . . Fabnet Peak Effective % . | . . . Robots Rewired . | . . . Allies Hacked . | . . . Hacks Repelled . | . . . Allies | -11 -10 -9 -------- Run | Scr Mat Mat Total Allies . | . . . Largest Group . | . . . Highest-Rated Group . | . . . Highest-Rated Ally . | . . . Total Orders . | . . . Ally Attacks . | . . . Total Damage . | . . . Kills . | . . . Allies Corrupted . | . . . Allies Melted . | . . . Intel | -11 -10 -9 ------- Run | Scr Mat Mat Robot Analysis Total . | . . . Derelict Logs Recovered . | . . . Drone Launches . | . . . Drone Recoveries . | . . . Exploration | -11 -10 -9 ------------- Run | Scr Mat Mat Turns Passed 908 | 136 570 202 Spaces Moved 707 | 86 457 164 Core 16 | 8 4 4 Treads . | . . . Legs 520 | 78 282 160 Wheels . | . . . Hover . | . . . Flight 171 | . 171 . Fastest Speed 37 | 50 37 120 Average Speed 99 | 113 88 120 Slowest Speed 150 | 120 120 150 Overloaded Moves . | . . . Propulsion Burnouts . | . . . Robots Hopped . | . . . Cave-ins Triggered . | . . . Exploration Rate (%) 32 | 6 70 21 Regions Visited 2 Branch Regions . Pre-discovered Areas . | . . . Known Exits Taken . | . . . Unknown Exits Taken 2 | 1 1 . Scrap Searched . | . . . Spaces Dug . | . . . Terrain Destroyed 68 | 6 62 . Melee . | . . . Projectile . | . . . AOE 68 | 6 62 . Terrain Rammed . | . . . Walls Destroyed . | . . . Machines Disabled . | . . . Actions | -11 -10 -9 --------- Run | Scr Mat Mat Total 864 | 109 588 167 Wait 63 | . 63 . Move 705 | 85 456 164 Hop . | . . . Pick Up 14 | 6 8 . Fast Attach 12 | 5 7 . Attach 5 | . 5 . Detach 1 | . 1 . Swap 6 | 1 5 . Drop 15 | . 15 . Fire 33 | 12 21 . Melee 5 | . 3 2 Ram 1 | . . 1 Kick . | . . . Crush . | . . . Escape Stasis . | . . . Rewire . | . . . Trap 4 | . 4 . Miscellaneous . | . . . Route ------- -11/Scrapyard -10/Materials (discovered 4 exits: *Mat x2 / [*Min x2]) -9/Materials (discovered 1 exit: [*Sto]) History --------- Turn | Location | Event 21 | -11/Scrapyard | Discovered new exit (range 15) 137 | -11/Scrapyard | Entered Materials 333 | -10/Materials | Build established: Mutant 333 | -10/Materials | Discovered new exit (range 14) 333 | -10/Materials | Discovered new exit (range 17) 392 | -10/Materials | Discovered new exit (range 12) 554 | -10/Materials | Core integrity fell below 50% 563 | -10/Materials | Repaired Datajack 596 | -10/Materials | Lost 3 parts (1p2n) 606 | -10/Materials | Discovered new exit (range 16) 707 | -10/Materials | Entered another Materials area 707 | -9/Materials | Evolved 2 slots: Utility x2 719 | -9/Materials | Discovered new exit (range 13) 870 | -9/Materials | Build established: Scavenger-Mutant 909 | -9/Materials | Self-destructed Last Messages --------------- 00837_ Jacked A-02 Transporter... >>find_fabricator No accessible Fabricator found in memory. 00838_ W-16 Scout sends out distress signal. 00838_ K-01 Serf collects debris. 00846_ ALERT: Hostiles spotted, dispatching reinforcements to Terminal M001. 00855_ Datajack destroyed. 00859_ K-01 Serf collects debris. 00894_ Connecting with Terminal... 00896_ Aluminum Leg destroyed. 00902_ Critical hit (Destroy). 00902_ Aluminum Leg destroyed. 00905_ Critical hit (Burn: +37). 00905_ Electrolysis Chamber disabled. 00908_ Critical hit (Burn: +37). 00908_ Ion Engine destroyed. 00908_ Slammed into Y-45 Defender. 00908_ Destabilizing: System interference. 00908_ ECM Suite temporarily disabled. Map ----- +----------------------------------------------------+ | ????????????????????????# #?????????# | | ????????????????????????# #??????????????? | | ????????????????????????# #??????????????? | | ????????????????????????# #??????????????? | | ????????????????????????# #??????????????? | | ????????????????????????# #??????????????? | | ????????????????????????# #??????????????? | | ????????????????????????# #??????????????? | | ????????????????????????# #??????????????? | | ????????????????????????# #??????????????? | | ????????????????????????# #??????????????? | | ?????????????????######## #??????????????? | | ?????????????????# # #??????????????? | | ?????????????????# T # #######+### ? | | ?????????????????# # | | ?????????????????# / "? | | ?????????????????# # "? | | ?????????????????# g""" ############### #? | | ?????????????????#g """g#??????????????????? | | ?????????????????# """g#??????????????????? | | ?????????????????# g #??????????????????? | | ?????????????????# """ #??????????????????? | | ?????????????????# """ #??????????????????? | | ?????????????????# "" #??????????????????? | | ?????????????????# Y #??????????????????? | | ?????????????????##@#####??????????????????? | | ??????????????????###??????????????????????? | | ???????????????????????????????????????????? | | ???????????????????????????????????????????? | | ???????????????????????????????????????????? | | ???????????????????????????????????????????? | | ???????????????????????????????????????????? | | ???????????????????????????????????????????? | | ???????????????????????????????????????????? | | ???????????????????????????????????????????? | | ???????????????????????????????????????????? | | ???????????????????????????????????????????? | | ???????????????????????????????????????????? | | ???????????????????????????????????????????? | | ???????????????????????????????????????????? | | ???????????????????????????????????????????? | | | | | | | | | | | | | | | | | | | +----------------------------------------------------+ Best States ------------- Heat Dissipation 28 Energy Generation 10 Energy Capacity 250 Matter Stores 228 Matter Capacity 450 Sight Range 16 Terrain Scan Density 10 ECM Strength 1 Evasion (%) 62 Offensive Hacking 10 Item Schematics ----------------- None Robot Schematics ------------------ None Fabricated ------------ Nothing Alien Tech Used ----------------- None Achievements -------------- None Challenges ------------ None Game ------ Seed FieldPhysicsChip Manual? 0 Play Time 00:23:35 Cumulative 11.4 hours Start 2022.04.07 @ 13:40:09 End 2022.04.07 @ 14:05:30 Sessions 1 Manual Loads 0 Difficulty Rogue Special Mode None Game No. 21 Rogue 21 Adventurer 0 Explorer 0 Win Type - Total 0 Types 0/0/0/0/0/0/0/0/0 Lore% 13 Gallery% 19 Achievement% 17 Wizard Run 0 Options --------- ASCII 0 Keyboard 0 Movement Numpad Keybinds 0 Fullscreen 2 Font 18/SmallcapsGlow Map View 76x50 Tactical HUD 1 Map Filters NONE Filters NONE Steam 1 RUN: 3546b317-e55a-40fb-b79f-e721ec3b94ed